[Event "VIII Open Semana Santa 2024"]
[Site "San Vicente del Raspeig"]
[Date "2024.03.30"]
[Round "6.3"]
[White "Ivanchuk, Vasyl"]
[Black "Movsziszian, Karen"]
[Result "1/2-1/2"]
[ECO "E85"]
[WhiteElo "2625"]
[BlackElo "2439"]
[Annotator "TA"]
[PlyCount "114"]
[EventDate "2024.03.27"]
[EventType "swiss"]
[EventCountry "ESP"]
[SourceTitle "playchess.com"]
[Source "ChessBase"]
[SourceQuality "1"]
[TimeControl "5400+30"]

{[%evp 35,114,34,54,56,41,42,43,33,41,28,26,35,62,66,64,58,67,67,64,65,56,57,66,59,61,61,55,62,60,60,62,62,80,60,60,60,68,60,70,59,87,94,90,0,0,0,0,0,0,0,0,0,0,0,0,0,0,0,0,0,0,0,0,0,0,0,0,0,0,0,0,0,0,0,0,0,0,0,0,0,0]} 1. d4 {[%emt 0:00:02]} d6 {[%emt 0:00:07]} 2. e4 {[%emt 0:00:14]} g6 {[%emt 0:00:04]} 3. c4 {[%emt 0:00:04]} Bg7 {[%emt 0:00:42]} 4. Nc3 {[%emt 0:00:04]} e5 {[%emt 0:07:25]} 5. Nge2 {[%emt 0:00:08]} exd4 {[%emt 0:02:36]} 6. Nxd4 {[%emt 0:00:08]} Nc6 {[%emt 0:00:03]} 7. Be3 {[%emt 0:00:07]} Nf6 {[%emt 0:01:03]} 8. f3 {[%emt 0:01:17]} O-O {[%emt 0:01:20]} 9. Qd2 {[%emt 0:00:05]} Nxd4 {[%emt 0:04:43]} 10. Bxd4 {[%emt 0:00:12]} Re8 {[%emt 0:05:16] E85: Königsindisch (Sämisch-Angriff).} 11. Be2 {[%emt 0:06:02]} c6 {[%emt 0:02:14]} 12. g4 $146 {[%emt 0:12:02]} ({Predecessor:} 12. O-O Qc7 13. Rac1 Be6 14. Rfd1 Rad8 15. Bf1 Qa5 16. Qf2 Nh5 17. Bxg7 Kxg7 18. Rc2 Nf4 19. Rcd2 Qg5 20. Kh1 d5 21. g3 Nh3 22. Bxh3 Bxh3 23. cxd5 cxd5 24. Nxd5 {1-0 Begunov,K (2325)-Johnson,D (2205) Titled Tuesday intern op 02nd Aug Early blitz 2022 (4)}) 12... a6 {[%emt 0:06:51]} 13. g5 {[%emt 0:13:36]} Nh5 {[%emt 0:00:39]} 14. Bxg7 {[%emt 0:00:04]} Nxg7 {[%emt 0:00:13]} 15. O-O-O {[%emt 0:02:16]} Be6 {[%emt 0:12:41]} 16. f4 {[%emt 0:06:33]} b5 {[%emt 0:02:53]} 17. Qxd6 {[%emt 0:17:06]} Qb6 {[%emt 0:06:12]} 18. Qd4 {[%emt 0:03:35]} Qxd4 {[%emt 0:04:07]} 19. Rxd4 {[%emt 0:00:03]} Bh3 {[%emt 0:00:04]} 20. Bf1 $1 {[%emt 0:19:32]} Ne6 {[%emt 0:01:30]} 21. Rd6 {[%emt 0:02:57]} Nxf4 {[%emt 0:00:07]} 22. Rxc6 {[%emt 0:00:01]} Bxf1 $1 {[%emt 0:11:23]} 23. Rxf1 {[%emt 0:00:06]} Nd3+ {[%emt 0:00:03]} 24. Kb1 {[%emt 0:01:58]} Ne5 {[%emt 0:00:02]} 25. Rc7 {[%emt 0:00:09]} bxc4 {[%emt 0:00:02]} 26. Nd5 {[%emt 0:00:05]} Kg7 {[%emt 0:00:19]} 27. Nb6 {[%emt 0:07:48]} Rad8 {[%emt 0:05:27]} 28. Nxc4 {[%emt 0:00:06]} Nxc4 {[%emt 0:00:03]} 29. Rxc4 {[%emt 0:00:05]} Rd7 {[%emt 0:00:07]} 30. Kc2 {[%emt 0:00:53]} Re5 {[%emt 0:00:19]} 31. h4 {[%emt 0:03:24]} h6 {[%emt 0:00:01]} 32. gxh6+ {[%emt 0:00:09]} Kxh6 {[%emt 0:00:02]} 33. Kc3 {[%emt 0:00:02]} a5 {[%emt 0:03:48]} 34. Rf4 {[%emt 0:01:33]} Kg7 {[%emt 0:01:36]} 35. b3 {[%emt 0:00:36]} Kf8 {[%emt 0:00:12]} 36. Kb2 {[%emt 0:01:23]} Rd2+ {[%emt 0:01:17]} 37. Ka3 {[%emt 0:00:04]} Re2 {[%emt 0:00:49] [#]} 38. Rc8+ $1 {[%emt 0:02:08]} Re8 {[%emt 0:00:01] [#]} 39. Rc5 {[%emt 0:00:02]} ({Besser ist} 39. Rxe8+ $1 $16 Kxe8 40. h5) 39... R8xe4 $11 {[%emt 0:08:48]} 40. Rxe4 {[%emt 0:01:33]} Rxe4 {[%emt 0:00:03]} 41. h5 {[%emt 0:00:01]} Kg7 $1 {[%emt 0:00:14]} 42. Rxa5 {[%emt 0:00:04]} f5 {[%emt 0:00:09]} 43. b4 {[%emt 0:00:15]} f4 {[%emt 0:00:24]} 44. Rg5 {[%emt 0:00:06]} Re3+ {[%emt 0:00:39]} 45. Ka4 {[%emt 0:00:27]} Rg3 $1 {[%emt 0:00:02]} 46. Rc5 {[%emt 0:00:48]} (46. Rxg6+ Rxg6 47. hxg6 f3 48. b5 f2 (48... Kxg6 49. b6 $11) 49. b6 f1=Q (49... f1=B $2 50. b7 $18) 50. Ka5 Kxg6 51. b7 Qb1 52. a4 Qb3 53. Ka6 Qxa4+ 54. Kb6 Qb4+ 55. Kc7 Qc5+ 56. Kd7 Qb6 57. Kc8 Qc6+ 58. Kb8 Kf6 59. Ka7 Qc5+ 60. Ka6 Qb4 61. b8=B Qxb8 62. Ka5 Ke5 63. Ka4 Kd4 64. Ka5 Kc5 65. Ka6 Qb6#) 46... g5 {[%emt 0:00:05]} 47. b5 {[%emt 0:00:33]} f3 {[%emt 0:01:17]} 48. Rf5 {[%emt 0:03:04]} Kh6 {[%emt 0:01:46]} 49. b6 {[%emt 0:00:47]} Rg4+ $1 {[%emt 0:00:01]} 50. Ka3 {[%emt 0:00:35]} (50. Ka5 $5 Rf4 $8 51. Rxf4 gxf4 52. b7 $11) 50... Rf4 $1 {[%emt 0:00:08]} 51. b7 {[%emt 0:00:16]} Rxf5 {[%emt 0:00:01]} 52. b8=Q {[%emt 0:00:07]} (52. b8=R {führt zum Matt.} f2 (52... Kxh5 $2 53. Rb1 $19) 53. Rh8+ Kg7 54. Rc8 f1=Q (54... f1=B $2 55. Rc6 $19) 55. h6+ Kxh6 56. Rh8+ Kg7 57. Rb8 Qc1+ 58. Kb3 Rf3+ 59. Kb4 Rf4+ 60. Kb5 Qc4+ 61. Kb6 Rf6+ (61... Qxa2 {wird mattgesetzt.} 62. Re8 Qb3+ 63. Kc6 Rc4+ 64. Kd6 Qd3+ 65. Ke6 Re4+ 66. Kf5 Qd5+ 67. Re5 Qxe5#) 62. Kb7 Qc6+ 63. Ka7 Qa6#) 52... Kxh5 {[%emt 0:00:11]} 53. Qh2+ {[%emt 0:00:09]} Kg4 {[%emt 0:00:35]} 54. Qf2 {[%emt 0:00:22]} (54. Qh1 $5) 54... Kh3 {[%emt 0:00:18]} 55. Qf1+ {[%emt 0:01:32]} Kg3 {[%emt 0:00:04]} 56. Qg1+ {[%emt 0:00:13]} Kh3 {[%emt 0:00:09]} 57. Qf1+ {[%emt 0:00:38]} Kg3 {[%emt 0:00:10]} 1/2-1/2

[Event "VIII Open Semana Santa 2024"]
[Site "San Vicente del Raspeig"]
[Date "2024.03.30"]
[Round "6.4"]
[White "Heimann, Mark"]
[Black "Makhnev, Denis"]
[Result "1-0"]
[ECO "D45"]
[WhiteElo "2435"]
[BlackElo "2516"]
[Annotator "TA"]
[PlyCount "33"]
[EventDate "2024.03.27"]
[EventType "swiss"]
[EventCountry "ESP"]
[SourceTitle "playchess.com"]
[Source "ChessBase"]
[SourceQuality "1"]
[TimeControl "5400+30"]

{[%evp 13,33,18,12,22,10,-1,33,16,35,-22,-5,-4,-11,-9,-8,-23,-18,-22,14,12,341,345]} 1. d4 {[%emt 0:00:01]} d5 {[%emt 0:00:35]} 2. Nf3 {[%emt 0:00:11]} e6 {[%emt 0:00:08]} 3. c4 {[%emt 1:31:48]} c6 {[%emt 0:00:07]} 4. e3 {[%emt 0:00:00]} Nf6 {[%emt 0:00:08]} 5. Nc3 {[%emt 0:00:00]} Nbd7 {[%emt 0:00:13]} 6. Be2 {[%emt 0:00:00]} dxc4 {[%emt 0:00:20]} 7. a4 {[%emt 0:00:00]} Bb4 {[%emt 0:08:54]} 8. Bxc4 {[%emt 0:00:00]} O-O {[%emt 0:00:09]} 9. O-O {[%emt 0:00:00]} Qc7 {[%emt 0:00:14]} 10. Qc2 {[%emt 0:00:00] White is slightly better.} e5 {[%emt 0:00:49]} 11. Ne4 {[%emt 0:00:00]} ({White should try} 11. Bd2 $14) 11... exd4 {[%emt 0:02:45]} 12. exd4 {[%emt 0:00:00]} Nxe4 {[%emt 0:00:08]} 13. Qxe4 {[%emt 0:00:00]} Nf6 {[%emt 0:00:06]} 14. Qh4 {[%emt 0:00:00]} Bf5 {[%emt 0:00:17] Wards off Bd3} 15. Bf4 {[%emt 0:00:00]} Bd6 {[%emt 0:01:40]} 16. Be5 {[%emt 0:00:00]} Qd8 $2 {[%emt 0:03:01][%mdl 8192] [#]} (16... Nd5 $11 {and Black is okay.}) 17. Qf4 $1 {[%emt 0:00:00][%csl LRd6,LRf5] Weighted Error Value: White=0.13 (very precise) /Black=0.56.  Loses game:     	---       	Black=1      Mistake:       	White=1     	---        Inaccurate:     	---       	Black=2      OK:         	White=3     	Black=2      Best:        	White=1     	---} 1-0

[Event "VIII Open Semana Santa 2024"]
[Site "San Vicente del Raspeig"]
[Date "2024.03.30"]
[Round "6.5"]
[White "Vetokhin, Savva"]
[Black "Ceres, Dragos"]
[Result "1/2-1/2"]
[ECO "A84"]
[WhiteElo "2427"]
[BlackElo "2482"]
[Annotator "TA"]
[PlyCount "75"]
[EventDate "2024.03.27"]
[EventType "swiss"]
[EventCountry "ESP"]
[SourceTitle "playchess.com"]
[Source "ChessBase"]
[SourceQuality "1"]
[TimeControl "5400+30"]

{[%evp 9,75,10,11,13,20,17,12,-10,0,-13,-8,-9,-6,-10,-10,-5,-12,-17,26,10,22,12,33,34,35,39,48,18,18,10,18,12,46,48,52,52,77,73,100,100,100,100,122,119,118,121,113,86,86,86,86,86,133,134,138,124,137,124,149,131,156,138,168,131,154,0,67,57]} 1. d4 {[%emt 0:00:02]} d5 {[%emt 0:00:04]} 2. c4 {[%emt 0:00:09]} e6 {[%emt 0:00:04]} 3. Nc3 {[%emt 0:00:07]} c6 {[%emt 0:00:03]} 4. e3 {[%emt 0:00:07]} f5 {[%emt 0:00:05]} 5. Qh5+ {[%emt 0:01:04]} g6 {[%emt 0:00:11]} 6. Qd1 {[%emt 0:00:03]} Bd6 {[%emt 0:00:39]} 7. Bd3 {[%emt 0:01:18]} Nf6 {[%emt 0:00:06]} 8. Nh3 {[%emt 0:04:34] The position is equal.} O-O {[%emt 0:00:41]} 9. O-O {[%emt 0:00:04]} Nbd7 {[%emt 0:01:05][%cal Bb8d7,Bd7f6,Bf6e4,Be4f2][%mdl 32]} 10. f3 {[%emt 0:01:58]} Qc7 {[%emt 0:00:19]} 11. f4 {[%emt 0:20:00]} Ne4 {[%emt 0:04:17]} 12. Qc2 {[%emt 0:01:51]} b6 {[%emt 0:06:51]} 13. b3 {[%emt 0:02:52]} Ba6 {[%emt 0:00:43]} 14. Bb2 {[%emt 0:01:35][%cal Rc3e4]} Ndf6 {[%emt 0:00:36]} 15. Rac1 {[%emt 0:01:57][%cal Oc4c5]} Qb7 {[%emt 0:03:24]} 16. Nxe4 {[%emt 0:11:23]} Nxe4 {[%emt 0:00:04]} 17. Nf2 {[%emt 0:05:25]} Nxf2 {[%emt 0:05:19]} 18. Qxf2 {[%emt 0:14:11]} Be7 {[%emt 0:00:26]} 19. Rc2 {[%emt 0:00:21]} Rac8 {[%emt 0:01:28]} 20. Rfc1 {[%emt 0:00:04]} Bf6 {[%emt 0:01:52]} 21. Be2 {[%emt 0:00:59]} Rfe8 {[%emt 0:07:17]} 22. b4 {[%emt 0:04:06] [#] aiming for b5.} b5 {[%emt 0:03:00]} 23. c5 {[%emt 0:03:12]} Qg7 {[%emt 0:07:51]} 24. a4 {[%emt 0:00:21]} Rb8 {[%emt 0:00:11]} 25. Ra1 {[%emt 0:00:35]} g5 {[%emt 0:01:12][%cal Bg6g5,Bg5g4][%mdl 32]} 26. Bc3 {[%emt 0:01:12]} g4 {[%emt 0:05:45]} 27. Rca2 {[%emt 0:00:54]} Re7 {[%emt 0:00:05]} 28. Qf1 {[%emt 0:02:42]} Rc7 {[%emt 0:00:21]} 29. Ra3 {[%emt 0:01:10]} Qd7 {[%emt 0:01:51]} 30. R1a2 {[%emt 0:00:17]} h5 {[%emt 0:08:36]} (30... Bc8 $142) 31. Qa1 $16 {[%emt 0:00:06]} Rbb7 {[%emt 0:00:13]} 32. Kf1 {[%emt 0:05:05][%cal Bg1f1,Bf1e1,Be1d2,Bd2c2][%mdl 32]} Kf7 {[%emt 0:01:58]} 33. Ke1 {[%emt 0:00:06]} h4 {[%emt 0:00:59]} 34. Kd2 {[%emt 0:00:07]} Ke8 {[%emt 0:00:39]} 35. Kc2 {[%emt 0:02:30]} Kd8 {[%emt 0:00:19]} 36. Be1 {[%emt 0:02:57]} Kc8 {[%emt 0:00:51] [#]} 37. Bc3 $2 {[%emt 0:00:16]} (37. axb5 $1 $16 Bxb5 38. Bxb5 cxb5 39. Ra6) 37... Kb8 {[%emt 0:00:20]} (37... Kd8 $1 $11) 38. Bd3 {[%emt 0:00:47] Weighted Error Value: White=0.12 (very precise) /Black=0.14 (very precise) .  Mistake:       	White=1     	Black=2      Inaccurate:     	White=1     	Black=3      OK:         	White=14    	Black=8      Best:        	White=1     	Black=2} 1/2-1/2

[Event "VIII Open Semana Santa 2024"]
[Site "San Vicente del Raspeig"]
[Date "2024.03.30"]
[Round "6.6"]
[White "Lamard, Guillaume"]
[Black "Beydullayeva, Govhar"]
[Result "0-1"]
[ECO "C84"]
[WhiteElo "2483"]
[BlackElo "2374"]
[Annotator "RC"]
[PlyCount "92"]
[EventDate "2024.03.27"]
[EventType "swiss"]
[EventCountry "ESP"]
[SourceTitle "playchess.com"]
[Source "ChessBase"]
[SourceQuality "1"]
[TimeControl "5400+30"]

1. e4 {[%emt 0:00:14]} e5 {[%emt 0:00:07]} 2. Nf3 {[%emt 0:00:13]} Nc6 {[%emt 0:00:04]} 3. Bb5 {[%emt 0:00:12]} a6 {[%emt 0:00:06]} 4. Ba4 {[%emt 0:00:04]} Nf6 {[%emt 0:00:05]} 5. O-O {[%emt 0:00:12]} Be7 {[%emt 0:00:06]} 6. d3 {[%emt 0:00:13]} b5 {[%emt 0:00:08]} 7. Bb3 {[%emt 0:00:10]} d6 {[%emt 0:00:04]} 8. c3 {[%emt 0:00:10]} O-O {[%emt 0:01:02]} 9. a4 {[%emt 0:00:17]} Bd7 {[%emt 0:03:23]} 10. Ba2 {[%emt 0:02:27]} h6 {[%emt 0:10:24]} 11. h3 {[%emt 0:00:42]} Re8 {[%emt 0:08:21]} 12. Be3 {[%emt 0:00:59]} Rb8 {[%emt 0:01:10]} 13. axb5 {[%emt 0:07:53]} axb5 {[%emt 0:00:58]} 14. b4 {[%emt 0:03:56]} Bf8 {[%emt 0:00:56]} 15. Nbd2 {[%emt 0:01:38]} Bc8 {[%emt 0:02:10]} 16. d4 {[%emt 0:15:42]} g6 {[%emt 0:18:11]} 17. Qb3 {[%emt 0:11:48]} Qe7 {[%emt 0:01:30]} 18. Bb1 {[%emt 0:07:29]} exd4 {[%emt 0:04:19]} 19. cxd4 {[%emt 0:01:23]} d5 {[%emt 0:02:18]} 20. e5 {[%emt 0:04:01]} Nh7 {[%emt 0:04:32]} 21. Rc1 {[%emt 0:02:42]} Bd7 {[%emt 0:09:16]} 22. Rc5 {[%emt 0:10:56]} Qe6 {[%emt 0:03:43]} 23. Rxd5 {[%emt 0:03:41]} Nxb4 {[%emt 0:04:41]} 24. Rxd7 {[%emt 0:00:35]} Qxd7 {[%emt 0:00:05]} 25. Bxg6 {[%emt 0:00:42]} Qe6 {[%emt 0:03:22]} 26. Bxh7+ {[%emt 0:05:44]} Kxh7 {[%emt 0:00:05]} 27. Qb1+ {[%emt 0:00:07]} Qg6 {[%emt 0:00:47]} 28. Ne4 {[%emt 0:00:41]} Be7 {[%emt 0:01:05]} 29. Ra7 {[%emt 0:06:43]} Nd5 {[%emt 0:05:10]} 30. Ra6 {[%emt 0:00:11]} Rb6 {[%emt 0:01:44]} 31. Rxb6 {[%emt 0:00:57]} cxb6 {[%emt 0:00:10]} 32. e6 {[%emt 0:03:11]} f5 {[%emt 0:05:33]} 33. Ne5 {[%emt 0:00:43]} Qxe6 {[%emt 0:00:09]} 34. Ng3 {[%emt 0:00:40]} Rf8 {[%emt 0:01:18]} 35. Qxb5 {[%emt 0:01:42]} f4 {[%emt 0:02:15]} 36. Qd3+ {[%emt 0:03:21]} Kg8 {[%emt 0:00:06]} 37. Nh5 {[%emt 0:00:52]} fxe3 {[%emt 0:00:53]} 38. fxe3 {[%emt 0:00:04]} Bg5 {[%emt 0:02:56]} 39. e4 {[%emt 0:00:09]} Nf4 {[%emt 0:01:03]} 40. Nxf4 {[%emt 0:00:05]} Bxf4 {[%emt 0:00:01]} 41. Nf3 {[%emt 0:00:08]} Qg6 {[%emt 0:01:31]} 42. Qb3+ {[%emt 0:01:21]} Kh7 {[%emt 0:00:16]} 43. Qd5 {[%emt 0:00:22]} Qf7 {[%emt 0:01:59]} 44. Qc6 {[%emt 0:00:18]} Qc7 {[%emt 0:01:16]} 45. Qe6 {[%emt 0:00:05]} Be3+ {[%emt 0:01:54]} 46. Kh1 {[%emt 0:01:03]} Rxf3 {[%emt 0:00:50]} 0-1

[Event "VIII Open Semana Santa 2024"]
[Site "San Vicente del Raspeig"]
[Date "2024.03.30"]
[Round "6.7"]
[White "Suarez Uriel, Adrian"]
[Black "Yuffa, Daniil"]
[Result "0-1"]
[ECO "B31"]
[WhiteElo "2407"]
[BlackElo "2606"]
[Annotator "TA"]
[PlyCount "68"]
[EventDate "2024.03.27"]
[EventType "swiss"]
[EventCountry "ESP"]
[SourceTitle "playchess.com"]
[Source "ChessBase"]
[SourceQuality "1"]
[TimeControl "5400+30"]

{[%evp 15,68,0,4,5,11,16,19,0,38,41,83,76,100,91,87,66,85,82,71,85,427,419,422,395,441,426,406,390,388,370,362,195,197,-229,-234,-230,-236,-240,-235,-626,-628,-610,-604,-553,-244,-1006,-1000,-849,-829,-6179,-6179,-5720,-5510,-4910,-2541]} 1. e4 {[%emt 0:10:36]} c5 {[%emt 0:01:06]} 2. Nf3 {[%emt 0:00:06]} Nc6 {[%emt 0:00:21]} 3. Bb5 {[%emt 0:00:05]} g6 {[%emt 0:00:14]} 4. O-O {[%emt 0:00:10]} Bg7 {[%emt 0:00:06]} 5. Re1 {[%emt 0:00:41]} Nf6 {[%emt 0:00:34]} 6. c3 {[%emt 0:03:21]} O-O {[%emt 0:02:46]} 7. d4 {[%emt 0:00:25]} d5 {[%emt 0:00:57]} 8. e5 {[%emt 0:00:04]} Ne4 {[%emt 0:00:20]} 9. Be3 {[%emt 0:00:44]} Qb6 {[%emt 0:00:57]} 10. Na3 {[%emt 0:03:31]} cxd4 {[%emt 1:28:09]} 11. Nxd4 {[%emt 0:04:05] The position is equal.} Nxd4 {[%emt 0:00:00]} (11... Nxe5 $5 12. f3 Nd6 $11) 12. cxd4 {[%emt 0:26:32]} f5 {[%emt 0:00:00][%cal Bf7f5,Bf5f4,Bf4e3][%mdl 32]} 13. Qb3 {[%emt 0:07:32][%cal Of2f3]} Be6 {[%emt 0:00:00] [#] aiming for ...f4.} 14. f3 {[%emt 0:06:58]} f4 {[%emt 0:00:00]} 15. fxe4 {[%emt 0:00:09]} fxe3 {[%emt 0:00:00]} 16. exd5 {[%emt 0:01:23]} Bf7 {[%emt 0:00:00]} (16... Qxd4 $2 17. dxe6 (17. Rad1 Qf4 $14) 17... Bxe5 18. Qxe3 (18. Rxe3 Qc5 $16) 18... Qxe3+ 19. Rxe3 $18) 17. Rad1 {[%emt 0:10:05]} Bxe5 $2 {[%emt 0:00:00][%mdl 8192]} 18. Nc4 $18 {[%emt 0:01:05]} (18. Qxe3 Bf6 $15) 18... Bxh2+ {[%emt 0:00:00]} 19. Kxh2 {[%emt 0:00:01]} Qf6 {[%emt 0:00:00]} 20. Nxe3 {[%emt 0:00:54]} (20. Qxe3 Bxd5 21. Qg3 (21. Qxe7 Qf4+ 22. Kh1 Bxg2+ 23. Kxg2 Qf2+ 24. Kh1 Rae8 $11) 21... Rad8 $18) 20... Rad8 {[%emt 0:00:00]} 21. Ng4 {[%emt 0:03:05]} Qg5 {[%emt 0:00:00]} 22. Qg3 {[%emt 0:00:22] Re5 is the strong threat.} Rxd5 {[%emt 0:00:00]} 23. Re5 {[%emt 0:02:19]} (23. Be2 $142) 23... Rxe5 {[%emt 0:00:00]} 24. Nxe5 {[%emt 0:01:07][%mdl 8192]} (24. dxe5 $18 {was the only winning move. Ne3 would now be deadly.} Bxa2 25. Rd4) 24... Qh5+ $19 {[%emt 0:00:00]} 25. Qh3 {[%emt 0:00:46] Hoping for Qxh5.} Qxd1 {[%emt 0:00:00]} 26. Nxf7 {[%emt 0:00:07] [#]} Qxd4 $1 {[%emt 0:01:18]} ({And not} 26... Rxf7 27. Bc4 $11) (26... Kxf7 27. Qxh7+ Kf6 28. Qh4+ Kg7 29. Qxe7+ Rf7 30. Qe5+ Kh6 31. Bc4 $11) 27. Qb3 {[%emt 0:11:49]} (27. Qg4 Qxg4 (27... Qxb2 $2 28. Ng5 $19) 28. Nh6+ Kg7 29. Nxg4) 27... Kg7 {[%emt 0:02:15]} 28. Bc4 {[%emt 0:00:22]} Rc8 {[%emt 0:01:04]} 29. Be6 {[%emt 0:03:08]} Qf4+ {[%emt 0:02:03]} (29... Rc6 $142 30. Ng5 Qe5+ 31. Qg3 Rc5 (31... Rxe6 $2 32. Nxe6+ Qxe6 33. Qc3+ Kg8 34. b3 $19) (31... Qxb2 32. Qb8 $16) 32. Qxe5+ Rxe5) 30. g3 $2 {[%emt 0:01:49]} (30. Qg3 Qxg3+ 31. Kxg3) 30... Qd2+ {[%emt 0:00:30] Black is clearly winning.} 31. Kh3 {[%emt 0:00:05]} Rc2 {[%emt 0:01:12] ( -> ...Qg2+)} 32. Kg4 {[%emt 0:02:28]} h5+ {[%emt 0:00:11]} 33. Kh4 {[%emt 0:00:05]} Rxb2 {[%emt 0:01:26]} 34. Qf3 {[%emt 0:00:13]} Qh2+ {[%emt 0:00:36] Weighted Error Value: White=0.90/Black=0.41.  Loses game:     	---       	Black=1      Missed win:     	White=1     	---        Mistake:       	White=2     	---        Inaccurate:     	---       	Black=2      OK:         	White=5     	Black=9      Best:        	White=6     	Black=3      Strong:       	---       	Black=1} 0-1